[Event "Titled Tuesday Blitz June 21 Early 2022"]
[White "Ciuffoletti, Paolo"]
[Black "Kopczynski, Michal"]
[WhiteFideId "807630"]
[BlackFideId "1124200"]
[WhiteElo "2143"]
[BlackElo "2235"]
[Result "0-1"]
[Round "08"]
[TimeControl "180+1"]
[Date "2022.06.21"]
[WhiteClock "0:00:01"]
[BlackClock "0:00:19"]

1. e4 {[%clk 0:03:00]}  c5 {[%clk 0:02:59]} 2. d4 {[%clk 0:03:00]}  cxd4 {[%clk 0:02:58]} 3. c3 {[%clk 0:03:00]}  d5 {[%clk 0:02:58]} 4. exd5 {[%clk 0:02:59]}  Qxd5 {[%clk 0:02:59]} 5. cxd4 {[%clk 0:03:00]}  Nc6 {[%clk 0:02:59]} 6. Nf3 {[%clk 0:03:00]}  Bg4 {[%clk 0:02:59]} 7. Nc3 {[%clk 0:02:59]}  Bxf3 {[%clk 0:02:58]} 8. gxf3 {[%clk 0:02:59]}  Qxd4 {[%clk 0:02:50]} 9. Qxd4 {[%clk 0:02:59]}  Nxd4 {[%clk 0:02:51]} 10. Nb5 {[%clk 0:03:00]}  Ne6 {[%clk 0:02:39]} 11. f4 {[%clk 0:02:51]}  a6 {[%clk 0:02:38]} 12. f5 {[%clk 0:02:49]}  axb5 {[%clk 0:02:31]} 13. Bxb5+ {[%clk 0:02:46]}  Kd8 {[%clk 0:02:32]} 14. fxe6 {[%clk 0:02:46]}  fxe6 {[%clk 0:02:33]} 15. Bf4 {[%clk 0:02:36]}  Nf6 {[%clk 0:02:32]} 16. O-O-O+ {[%clk 0:01:52]}  Nd5 {[%clk 0:02:32]} 17. Rhe1 {[%clk 0:01:25]}  Kc8 {[%clk 0:02:30]} 18. Bg3 {[%clk 0:01:20]}  Rxa2 {[%clk 0:02:17]} 19. Kb1 {[%clk 0:01:13]}  Ra5 {[%clk 0:02:16]} 20. Be8 {[%clk 0:00:55]}  g6 {[%clk 0:01:59]} 21. Be5 {[%clk 0:00:52]}  Nf6 {[%clk 0:01:48]} 22. Bf7 {[%clk 0:00:28]}  Ra6 {[%clk 0:01:22]} 23. Rc1+ {[%clk 0:00:22]}  Rc6 {[%clk 0:01:22]} 24. Bxe6+ {[%clk 0:00:21]}  Kd8 {[%clk 0:01:21]} 25. Red1+ {[%clk 0:00:21]}  Ke8 {[%clk 0:01:21]} 26. Bd7+ {[%clk 0:00:18]}  Nxd7 {[%clk 0:01:16]} 27. Bxh8 {[%clk 0:00:17]}  Rxc1+ {[%clk 0:01:04]} 28. Rxc1 {[%clk 0:00:15]}  e5 {[%clk 0:01:05]} 29. Rc7 {[%clk 0:00:15]}  b5 {[%clk 0:00:57]} 30. Rb7 {[%clk 0:00:13]}  b4 {[%clk 0:00:57]} 31. Rb5 {[%clk 0:00:13]}  Bd6 {[%clk 0:00:55]} 32. Bg7 {[%clk 0:00:11]}  Ke7 {[%clk 0:00:52]} 33. Bh6 {[%clk 0:00:11]}  Ke6 {[%clk 0:00:52]} 34. Bg5 {[%clk 0:00:11]}  e4 {[%clk 0:00:49]} 35. Rb7 {[%clk 0:00:07]}  h5 {[%clk 0:00:46]} 36. h4 {[%clk 0:00:06]}  Ne5 {[%clk 0:00:40]} 37. Kc2 {[%clk 0:00:06]}  Nd3 {[%clk 0:00:37]} 38. Rb6 {[%clk 0:00:06]}  Kd5 {[%clk 0:00:33]} 39. f3 {[%clk 0:00:06]}  Ne1+ {[%clk 0:00:32]} 40. Kd1 {[%clk 0:00:05]}  Nxf3 {[%clk 0:00:32]} 41. Ke2 {[%clk 0:00:04]}  Nd4+ {[%clk 0:00:29]} 42. Kd1 {[%clk 0:00:03]}  Nf5 {[%clk 0:00:24]} 43. Bf6 {[%clk 0:00:03]}  e3 {[%clk 0:00:24]} 44. Ke2 {[%clk 0:00:03]}  Ng3+ {[%clk 0:00:22]} 45. Kf3 {[%clk 0:00:02]}  e2 {[%clk 0:00:20]} 46. Rxd6+ {[%clk 0:00:01]}  Kxd6 {[%clk 0:00:19]} 47. Kf2 {[%clk 0:00:01]}  Ne4+ {[%clk 0:00:18]} 48. Kxe2 {[%clk 0:00:01]}  Nxf6 {[%clk 0:00:19]} 0-1


[Site "https://www.chess.com"]

[Event "Titled Tuesday Blitz June 21 Early 2022"]
[White "Clawitter, Craig"]
[Black "Joubert, Dantelle"]
[WhiteFideId "2023105"]
[BlackFideId "14310813"]
[WhiteElo "2262"]
[BlackElo "1507"]
[Result "1-0"]
[Round "08"]
[TimeControl "180+1"]
[Date "2022.06.21"]
[WhiteClock "0:00:59"]
[BlackClock "0:00:02"]

1. e4 {[%clk 0:03:00]}  e5 {[%clk 0:02:58]} 2. Nf3 {[%clk 0:03:00]}  Nc6 {[%clk 0:02:57]} 3. Bb5 {[%clk 0:03:00]}  Nf6 {[%clk 0:02:56]} 4. d3 {[%clk 0:02:59]}  Bc5 {[%clk 0:02:55]} 5. Bxc6 {[%clk 0:02:57]}  dxc6 {[%clk 0:02:55]} 6. Nbd2 {[%clk 0:02:58]}  O-O {[%clk 0:02:52]} 7. O-O {[%clk 0:02:52]}  Bg4 {[%clk 0:02:41]} 8. h3 {[%clk 0:02:50]}  Bh5 {[%clk 0:02:40]} 9. Nc4 {[%clk 0:02:41]}  Nd7 {[%clk 0:01:52]} 10. Be3 {[%clk 0:02:39]}  Qe7 {[%clk 0:01:51]} 11. Bxc5 {[%clk 0:02:24]}  Qxc5 {[%clk 0:01:50]} 12. Ne3 {[%clk 0:02:18]}  Rad8 {[%clk 0:01:35]} 13. g4 {[%clk 0:02:09]}  Bg6 {[%clk 0:01:33]} 14. Nf5 {[%clk 0:02:09]}  Rfe8 {[%clk 0:01:09]} 15. Kg2 {[%clk 0:02:08]}  Nf8 {[%clk 0:01:08]} 16. N3h4 {[%clk 0:01:59]}  Ne6 {[%clk 0:01:06]} 17. a3 {[%clk 0:01:24]}  Nf4+ {[%clk 0:01:00]} 18. Kh2 {[%clk 0:01:24]}  Re6 {[%clk 0:00:50]} 19. Ng2 {[%clk 0:01:22]}  Nxg2 {[%clk 0:00:40]} 20. Kxg2 {[%clk 0:01:23]}  a5 {[%clk 0:00:31]} 21. b4 {[%clk 0:01:18]}  axb4 {[%clk 0:00:30]} 22. axb4 {[%clk 0:01:19]}  Qf8 {[%clk 0:00:13]} 23. Ra7 {[%clk 0:01:14]}  Qxb4 {[%clk 0:00:12]} 24. Qb1 {[%clk 0:01:12]}  Qxb1 {[%clk 0:00:11]} 25. Rxb1 {[%clk 0:01:13]}  b5 {[%clk 0:00:03]} 26. Rxc7 {[%clk 0:01:11]}  Bxf5 {[%clk 0:00:03]} 27. gxf5 {[%clk 0:01:10]}  Red6 {[%clk 0:00:02]} 28. Ra1 {[%clk 0:01:05]}  g6 {[%clk 0:00:02]} 29. Raa7 {[%clk 0:00:59]} 1-0


[Site "https://www.chess.com"]

[Event "Titled Tuesday Blitz June 21 Early 2022"]
[White "Corrales Jimenez, Fidel"]
[Black "Domingo Nunez, Ruben"]
[WhiteFideId "3506690"]
[BlackFideId "22245570"]
[WhiteElo "2541"]
[BlackElo "2376"]
[Result "1-0"]
[Round "08"]
[TimeControl "180+1"]
[Date "2022.06.21"]
[WhiteClock "0:00:15"]
[BlackClock "0:00:13"]

1. d4 {[%clk 0:02:58]}  g6 {[%clk 0:02:59]} 2. c4 {[%clk 0:02:57]}  Bg7 {[%clk 0:03:00]} 3. Nc3 {[%clk 0:02:58]}  d6 {[%clk 0:03:00]} 4. e4 {[%clk 0:02:58]}  Nd7 {[%clk 0:03:00]} 5. Be2 {[%clk 0:02:56]}  e5 {[%clk 0:03:00]} 6. d5 {[%clk 0:02:57]}  a5 {[%clk 0:03:01]} 7. h4 {[%clk 0:02:56]}  h5 {[%clk 0:03:00]} 8. Bg5 {[%clk 0:02:54]}  Bf6 {[%clk 0:02:59]} 9. Qd2 {[%clk 0:02:49]}  Nc5 {[%clk 0:02:55]} 10. g3 {[%clk 0:02:44]}  Bd7 {[%clk 0:02:43]} 11. Be3 {[%clk 0:02:41]}  b6 {[%clk 0:02:39]} 12. Nf3 {[%clk 0:02:41]}  Bg7 {[%clk 0:02:38]} 13. Ng5 {[%clk 0:02:38]}  f6 {[%clk 0:02:32]} 14. Nh3 {[%clk 0:02:30]}  Bh6 {[%clk 0:02:28]} 15. f4 {[%clk 0:02:30]}  Qe7 {[%clk 0:02:21]} 16. Nf2 {[%clk 0:02:29]}  f5 {[%clk 0:02:06]} 17. exf5 {[%clk 0:02:07]}  Bxf5 {[%clk 0:02:00]} 18. O-O-O {[%clk 0:01:59]}  a4 {[%clk 0:01:53]} 19. Bxc5 {[%clk 0:01:58]}  exf4 {[%clk 0:01:34]} 20. gxf4 {[%clk 0:01:46]}  bxc5 {[%clk 0:01:35]} 21. Bd3 {[%clk 0:01:45]}  Qf7 {[%clk 0:01:24]} 22. Rhe1+ {[%clk 0:01:44]}  Kd8 {[%clk 0:01:22]} 23. Kb1 {[%clk 0:01:38]}  Ne7 {[%clk 0:01:20]} 24. Nfe4 {[%clk 0:01:36]}  Bg4 {[%clk 0:01:17]} 25. Be2 {[%clk 0:01:16]}  Bxf4 {[%clk 0:01:16]} 26. Qc2 {[%clk 0:01:16]}  Nf5 {[%clk 0:01:10]} 27. Bxg4 {[%clk 0:01:14]}  hxg4 {[%clk 0:01:11]} 28. Nb5 {[%clk 0:01:09]}  Ne3 {[%clk 0:00:58]} 29. Qc3 {[%clk 0:01:09]}  Re8 {[%clk 0:00:55]} 30. Rxe3 {[%clk 0:01:09]}  Re7 {[%clk 0:00:55]} 31. Re2 {[%clk 0:01:00]}  Qf5 {[%clk 0:00:48]} 32. Rde1 {[%clk 0:00:57]}  g3 {[%clk 0:00:27]} 33. Qf3 {[%clk 0:00:44]}  Kd7 {[%clk 0:00:28]} 34. Ka1 {[%clk 0:00:40]}  Rae8 {[%clk 0:00:28]} 35. a3 {[%clk 0:00:30]}  g2 {[%clk 0:00:26]} 36. Qxg2 {[%clk 0:00:29]}  Be5 {[%clk 0:00:23]} 37. Ka2 {[%clk 0:00:28]}  Bh8 {[%clk 0:00:18]} 38. Rf1 {[%clk 0:00:24]}  Qh5 {[%clk 0:00:17]} 39. Qh3+ {[%clk 0:00:22]}  Kd8 {[%clk 0:00:18]} 40. Na7 {[%clk 0:00:21]}  Rd7 {[%clk 0:00:15]} 41. Nxc5 {[%clk 0:00:16]}  dxc5 {[%clk 0:00:11]} 42. Nc6+ {[%clk 0:00:16]}  Kc8 {[%clk 0:00:12]} 43. Rxe8+ {[%clk 0:00:16]}  Kb7 {[%clk 0:00:12]} 44. Rb8+ {[%clk 0:00:15]}  Ka6 {[%clk 0:00:12]} 45. Qxd7 {[%clk 0:00:16]}  Qg4 {[%clk 0:00:13]} 46. Qxg4 {[%clk 0:00:15]} 1-0


[Site "https://www.chess.com"]

[Event "Titled Tuesday Blitz June 21 Early 2022"]
[White "Coto Mederos, Michel"]
[Black "Vifleemskaia, Svetlana"]
[WhiteFideId "3508528"]
[BlackFideId "4129490"]
[WhiteElo "2427"]
[BlackElo "1929"]
[Result "1-0"]
[Round "08"]
[TimeControl "180+1"]
[Date "2022.06.21"]
[WhiteClock "0:00:05"]
[BlackClock "0:00:01"]

1. d4 {[%clk 0:02:52]}  Nf6 {[%clk 0:02:59]} 2. Bg5 {[%clk 0:02:51]}  Ne4 {[%clk 0:02:59]} 3. Bf4 {[%clk 0:02:50]}  d5 {[%clk 0:02:59]} 4. f3 {[%clk 0:02:40]}  Nf6 {[%clk 0:02:59]} 5. e3 {[%clk 0:02:39]}  c5 {[%clk 0:02:59]} 6. Nd2 {[%clk 0:02:39]}  Nc6 {[%clk 0:02:57]} 7. c3 {[%clk 0:02:38]}  h6 {[%clk 0:02:54]} 8. Bg3 {[%clk 0:02:35]}  Bf5 {[%clk 0:02:51]} 9. Nh3 {[%clk 0:02:02]}  g5 {[%clk 0:02:46]} 10. Nf2 {[%clk 0:01:59]}  e6 {[%clk 0:02:43]} 11. Bd3 {[%clk 0:01:59]}  Bxd3 {[%clk 0:02:36]} 12. Nxd3 {[%clk 0:01:59]}  c4 {[%clk 0:02:28]} 13. Ne5 {[%clk 0:01:55]}  Bd6 {[%clk 0:02:13]} 14. Qa4 {[%clk 0:01:50]}  Qc7 {[%clk 0:02:09]} 15. O-O {[%clk 0:01:15]}  Nd7 {[%clk 0:01:19]} 16. f4 {[%clk 0:01:10]}  f6 {[%clk 0:00:55]} 17. Nexc4 {[%clk 0:00:49]}  dxc4 {[%clk 0:00:50]} 18. Nxc4 {[%clk 0:00:50]}  Nb6 {[%clk 0:00:36]} 19. Nxd6+ {[%clk 0:00:47]}  Qxd6 {[%clk 0:00:36]} 20. Qc2 {[%clk 0:00:47]}  Qe7 {[%clk 0:00:27]} 21. fxg5 {[%clk 0:00:45]}  hxg5 {[%clk 0:00:26]} 22. Qg6+ {[%clk 0:00:43]}  Qf7 {[%clk 0:00:22]} 23. Rxf6 {[%clk 0:00:42]}  Qxg6 {[%clk 0:00:22]} 24. Rxg6 {[%clk 0:00:43]}  Kd7 {[%clk 0:00:19]} 25. Rf1 {[%clk 0:00:36]}  Rhg8 {[%clk 0:00:16]} 26. Rf7+ {[%clk 0:00:27]}  Ne7 {[%clk 0:00:15]} 27. Rxg8 {[%clk 0:00:23]}  Rxg8 {[%clk 0:00:15]} 28. e4 {[%clk 0:00:21]}  Ke8 {[%clk 0:00:11]} 29. Rh7 {[%clk 0:00:20]}  Nd7 {[%clk 0:00:10]} 30. Bd6 {[%clk 0:00:19]}  Ng6 {[%clk 0:00:06]} 31. g3 {[%clk 0:00:17]}  Ngf8 {[%clk 0:00:04]} 32. Re7+ {[%clk 0:00:14]}  Kd8 {[%clk 0:00:03]} 33. Kg2 {[%clk 0:00:13]}  Ng6 {[%clk 0:00:03]} 34. Rxe6 {[%clk 0:00:12]}  Nb6 {[%clk 0:00:02]} 35. b3 {[%clk 0:00:08]}  Kd7 {[%clk 0:00:02]} 36. d5 {[%clk 0:00:09]}  Nc8 {[%clk 0:00:01]} 37. Ba3 {[%clk 0:00:07]}  Nf8 {[%clk 0:00:02]} 38. Rf6 {[%clk 0:00:06]}  Ng6 {[%clk 0:00:01]} 39. Rf7+ {[%clk 0:00:06]}  Kd8 {[%clk 0:00:01]} 40. Rxb7 {[%clk 0:00:05]}  Ne5 {[%clk 0:00:01]} 41. Rb8 {[%clk 0:00:05]}  Kc7 {[%clk 0:00:01]} 42. Rb5 {[%clk 0:00:05]}  a6 {[%clk 0:00:01]} 43. Rc5+ {[%clk 0:00:05]}  Kb7 {[%clk 0:00:01]} 44. c4 {[%clk 0:00:06]}  Nd3 {[%clk 0:00:01]} 45. Rc6 {[%clk 0:00:05]} 1-0


[Site "https://www.chess.com"]

[Event "Titled Tuesday Blitz June 21 Early 2022"]
[White "Cramling Bellon, Anna"]
[Black "Pein, Jonathan"]
[WhiteFideId "32009232"]
[BlackFideId "417092"]
[WhiteElo "1905"]
[BlackElo "2140"]
[Result "0-1"]
[Round "08"]
[TimeControl "180+1"]
[Date "2022.06.21"]
[WhiteClock "0:00:03"]
[BlackClock "0:00:32"]

1. d4 {[%clk 0:03:00]}  a6 {[%clk 0:02:54]} 2. c4 {[%clk 0:02:59]}  b5 {[%clk 0:02:51]} 3. cxb5 {[%clk 0:02:57]}  axb5 {[%clk 0:02:52]} 4. e4 {[%clk 0:02:53]}  c6 {[%clk 0:02:50]} 5. Nf3 {[%clk 0:02:49]}  g6 {[%clk 0:02:51]} 6. d5 {[%clk 0:02:37]}  Bg7 {[%clk 0:02:47]} 7. dxc6 {[%clk 0:02:36]}  dxc6 {[%clk 0:02:48]} 8. Qxd8+ {[%clk 0:02:36]}  Kxd8 {[%clk 0:02:49]} 9. Bf4 {[%clk 0:02:33]}  Bxb2 {[%clk 0:02:47]} 10. Be5 {[%clk 0:02:18]}  Bxa1 {[%clk 0:02:46]} 11. Bxa1 {[%clk 0:02:17]}  f6 {[%clk 0:02:47]} 12. Ng5 {[%clk 0:02:14]}  Ke8 {[%clk 0:02:28]} 13. h4 {[%clk 0:02:14]}  Rxa2 {[%clk 0:02:27]} 14. Bc3 {[%clk 0:01:45]}  e5 {[%clk 0:02:23]} 15. Nf3 {[%clk 0:01:33]}  Be6 {[%clk 0:02:19]} 16. h5 {[%clk 0:01:26]}  gxh5 {[%clk 0:01:59]} 17. Rxh5 {[%clk 0:01:22]}  Nd7 {[%clk 0:01:58]} 18. Be2 {[%clk 0:01:07]}  Ne7 {[%clk 0:01:49]} 19. Nbd2 {[%clk 0:00:38]}  Nc5 {[%clk 0:01:38]} 20. Nxe5 {[%clk 0:00:35]}  Na4 {[%clk 0:01:15]} 21. Bd4 {[%clk 0:00:18]}  fxe5 {[%clk 0:01:15]} 22. Bxe5 {[%clk 0:00:17]}  Rg8 {[%clk 0:01:07]} 23. Rxh7 {[%clk 0:00:17]}  Rxg2 {[%clk 0:01:03]} 24. Bh5+ {[%clk 0:00:17]}  Kd7 {[%clk 0:01:03]} 25. Bf6 {[%clk 0:00:14]}  Rg1+ {[%clk 0:00:50]} 26. Ke2 {[%clk 0:00:12]}  Nc3+ {[%clk 0:00:50]} 27. Bxc3 {[%clk 0:00:12]}  Bg4+ {[%clk 0:00:45]} 28. Bxg4+ {[%clk 0:00:10]}  Rxg4 {[%clk 0:00:46]} 29. Kf3 {[%clk 0:00:03]}  Rg6 {[%clk 0:00:43]} 30. Bb4 {[%clk 0:00:02]}  Re6 {[%clk 0:00:39]} 31. Nb3 {[%clk 0:00:03]}  Ke8 {[%clk 0:00:35]} 32. Nd4 {[%clk 0:00:03]}  Rf6+ {[%clk 0:00:32]} 0-1


[Site "https://www.chess.com"]

[Event "Titled Tuesday Blitz June 21 Early 2022"]
[White "Cunha, Lucas Aguiar"]
[Black "Goltseva, Ekaterina"]
[WhiteFideId "2125404"]
[BlackFideId "24173770"]
[WhiteElo "2328"]
[BlackElo "2086"]
[Result "1-0"]
[Round "08"]
[TimeControl "180+1"]
[Date "2022.06.21"]
[WhiteClock "0:01:32"]
[BlackClock "0:00:18"]

1. e4 {[%clk 0:03:00]}  e5 {[%clk 0:02:06]} 2. Nf3 {[%clk 0:03:00]}  Nc6 {[%clk 0:02:06]} 3. Nc3 {[%clk 0:03:00]}  Nf6 {[%clk 0:02:05]} 4. Bb5 {[%clk 0:03:00]}  Bd6 {[%clk 0:02:04]} 5. d3 {[%clk 0:03:00]}  a6 {[%clk 0:02:03]} 6. Bc4 {[%clk 0:02:59]}  O-O {[%clk 0:01:55]} 7. a3 {[%clk 0:02:59]}  Nd4 {[%clk 0:01:49]} 8. Bg5 {[%clk 0:02:48]}  c6 {[%clk 0:01:43]} 9. O-O {[%clk 0:02:40]}  b5 {[%clk 0:01:42]} 10. Ba2 {[%clk 0:02:40]}  Bc7 {[%clk 0:01:33]} 11. h3 {[%clk 0:02:29]}  Ne6 {[%clk 0:01:12]} 12. Be3 {[%clk 0:02:13]}  d5 {[%clk 0:00:57]} 13. d4 {[%clk 0:02:13]}  exd4 {[%clk 0:00:48]} 14. Nxd4 {[%clk 0:02:14]}  Nxd4 {[%clk 0:00:47]} 15. Qxd4 {[%clk 0:02:05]}  dxe4 {[%clk 0:00:44]} 16. Qc5 {[%clk 0:01:52]}  Qd6 {[%clk 0:00:35]} 17. Rfd1 {[%clk 0:01:52]}  Qh2+ {[%clk 0:00:33]} 18. Kf1 {[%clk 0:01:51]}  Qh1+ {[%clk 0:00:33]} 19. Ke2 {[%clk 0:01:52]}  Qxg2 {[%clk 0:00:33]} 20. Rg1 {[%clk 0:01:52]}  Qf3+ {[%clk 0:00:30]} 21. Ke1 {[%clk 0:01:52]}  Bh2 {[%clk 0:00:24]} 22. Rxg7+ {[%clk 0:01:33]}  Kh8 {[%clk 0:00:18]} 23. Qxf8+ {[%clk 0:01:32]} 1-0


[Site "https://www.chess.com"]

[Event "Titled Tuesday Blitz June 21 Early 2022"]
[White "Daeschler, Florian"]
[Black "Al-Tarboush, Ward"]
[WhiteFideId "20678193"]
[BlackFideId "7601450"]
[WhiteElo "2221"]
[BlackElo "2249"]
[Result "1-0"]
[Round "08"]
[TimeControl "180+1"]
[Date "2022.06.21"]
[WhiteClock "0:00:11"]
[BlackClock "0:00:03"]

1. e4 {[%clk 0:03:00]}  b6 {[%clk 0:02:59]} 2. d4 {[%clk 0:03:00]}  Bb7 {[%clk 0:02:59]} 3. Bd3 {[%clk 0:03:00]}  e6 {[%clk 0:02:57]} 4. Nd2 {[%clk 0:03:01]}  c5 {[%clk 0:02:56]} 5. c3 {[%clk 0:03:00]}  Nf6 {[%clk 0:02:55]} 6. Ne2 {[%clk 0:03:00]}  Be7 {[%clk 0:02:52]} 7. O-O {[%clk 0:03:00]}  Nc6 {[%clk 0:02:51]} 8. a3 {[%clk 0:02:52]}  d6 {[%clk 0:02:27]} 9. Nf3 {[%clk 0:02:51]}  O-O {[%clk 0:02:18]} 10. Ng3 {[%clk 0:02:51]}  Rc8 {[%clk 0:02:12]} 11. Re1 {[%clk 0:02:50]}  Rc7 {[%clk 0:02:08]} 12. Qe2 {[%clk 0:02:33]}  cxd4 {[%clk 0:02:06]} 13. cxd4 {[%clk 0:02:32]}  Qa8 {[%clk 0:02:05]} 14. e5 {[%clk 0:02:26]}  dxe5 {[%clk 0:02:04]} 15. dxe5 {[%clk 0:02:27]}  Nd7 {[%clk 0:01:56]} 16. Bg5 {[%clk 0:02:19]}  Nc5 {[%clk 0:01:50]} 17. Bxh7+ {[%clk 0:02:04]}  Kxh7 {[%clk 0:01:48]} 18. Bxe7 {[%clk 0:02:04]}  Rh8 {[%clk 0:00:44]} 19. Bxc5 {[%clk 0:01:42]}  bxc5 {[%clk 0:00:44]} 20. Rad1 {[%clk 0:01:36]}  Nd4 {[%clk 0:00:41]} 21. Nxd4 {[%clk 0:01:32]}  cxd4 {[%clk 0:00:42]} 22. Rxd4 {[%clk 0:01:29]}  Bxg2 {[%clk 0:00:40]} 23. Red1 {[%clk 0:01:04]}  Bf3 {[%clk 0:00:19]} 24. Qd3+ {[%clk 0:01:04]}  g6 {[%clk 0:00:20]} 25. Re1 {[%clk 0:00:54]}  Kg7 {[%clk 0:00:20]} 26. Qe3 {[%clk 0:00:43]}  Bd5 {[%clk 0:00:09]} 27. Qf4 {[%clk 0:00:39]}  Rc2 {[%clk 0:00:09]} 28. Qf6+ {[%clk 0:00:38]}  Kg8 {[%clk 0:00:08]} 29. Ne4 {[%clk 0:00:27]}  Qc6 {[%clk 0:00:06]} 30. Ng5 {[%clk 0:00:24]}  Qc7 {[%clk 0:00:03]} 31. Red1 {[%clk 0:00:15]}  Rc1 {[%clk 0:00:03]} 32. h3 {[%clk 0:00:13]}  Rxd1+ {[%clk 0:00:03]} 33. Rxd1 {[%clk 0:00:14]}  Rh4 {[%clk 0:00:03]} 34. Nxe6 {[%clk 0:00:11]} 1-0


[Site "https://www.chess.com"]

[Event "Titled Tuesday Blitz June 21 Early 2022"]
[White "De Souza, Cristiano Gomes"]
[Black "Kalaiyalahan, Akshaya"]
[WhiteFideId "2151758"]
[BlackFideId "422894"]
[WhiteElo "2068"]
[BlackElo "1913"]
[Result "0-1"]
[Round "08"]
[TimeControl "180+1"]
[Date "2022.06.21"]
[WhiteClock "0:01:02"]
[BlackClock "0:00:10"]

1. d4 {[%clk 0:03:00]}  d5 {[%clk 0:02:57]} 2. c4 {[%clk 0:03:00]}  c6 {[%clk 0:02:56]} 3. Nf3 {[%clk 0:03:01]}  Nf6 {[%clk 0:02:54]} 4. Nc3 {[%clk 0:03:00]}  Bf5 {[%clk 0:02:37]} 5. a4 {[%clk 0:03:00]}  e6 {[%clk 0:02:36]} 6. Bg5 {[%clk 0:02:58]}  Be7 {[%clk 0:02:33]} 7. e3 {[%clk 0:02:58]}  O-O {[%clk 0:02:29]} 8. a5 {[%clk 0:02:55]}  Nbd7 {[%clk 0:02:25]} 9. Qa4 {[%clk 0:02:53]}  Qc7 {[%clk 0:02:18]} 10. Be2 {[%clk 0:02:48]}  h6 {[%clk 0:02:05]} 11. Bh4 {[%clk 0:02:47]}  dxc4 {[%clk 0:01:53]} 12. Bxc4 {[%clk 0:02:45]}  e5 {[%clk 0:01:52]} 13. Bg3 {[%clk 0:02:43]}  Bd6 {[%clk 0:01:53]} 14. dxe5 {[%clk 0:02:39]}  Nxe5 {[%clk 0:01:52]} 15. Nxe5 {[%clk 0:02:38]}  Bxe5 {[%clk 0:01:52]} 16. Bxe5 {[%clk 0:02:37]}  Qxe5 {[%clk 0:01:52]} 17. O-O {[%clk 0:02:36]}  Ng4 {[%clk 0:01:50]} 18. g3 {[%clk 0:02:35]}  Bd7 {[%clk 0:01:35]} 19. Rad1 {[%clk 0:02:31]}  Qh5 {[%clk 0:01:32]} 20. h4 {[%clk 0:02:27]}  Ne5 {[%clk 0:01:26]} 21. Be2 {[%clk 0:02:23]}  Qg6 {[%clk 0:01:14]} 22. Qf4 {[%clk 0:02:15]}  Rae8 {[%clk 0:01:01]} 23. Rd4 {[%clk 0:02:11]}  h5 {[%clk 0:00:58]} 24. Rfd1 {[%clk 0:02:10]}  Bg4 {[%clk 0:00:56]} 25. Bxg4 {[%clk 0:02:07]}  hxg4 {[%clk 0:00:56]} 26. Ne4 {[%clk 0:02:03]}  Nf3+ {[%clk 0:00:54]} 27. Kg2 {[%clk 0:02:03]}  Nxd4 {[%clk 0:00:54]} 28. Rxd4 {[%clk 0:02:04]}  c5 {[%clk 0:00:45]} 29. Rc4 {[%clk 0:02:00]}  Qc6 {[%clk 0:00:38]} 30. Qf5 {[%clk 0:01:44]}  b6 {[%clk 0:00:27]} 31. axb6 {[%clk 0:01:42]}  axb6 {[%clk 0:00:27]} 32. Kh2 {[%clk 0:01:37]}  b5 {[%clk 0:00:17]} 33. Rxc5 {[%clk 0:01:11]}  Qxe4 {[%clk 0:00:14]} 34. Rxb5 {[%clk 0:01:11]}  Qxf5 {[%clk 0:00:13]} 35. Rxf5 {[%clk 0:01:11]}  g6 {[%clk 0:00:14]} 36. Rf4 {[%clk 0:01:11]}  f5 {[%clk 0:00:13]} 37. Kg2 {[%clk 0:01:11]}  Rb8 {[%clk 0:00:13]} 38. b4 {[%clk 0:01:10]}  Rb5 {[%clk 0:00:13]} 39. e4 {[%clk 0:01:10]}  Rfb8 {[%clk 0:00:12]} 40. exf5 {[%clk 0:01:10]}  gxf5 {[%clk 0:00:12]} 41. f3 {[%clk 0:01:05]}  gxf3+ {[%clk 0:00:12]} 42. Kxf3 {[%clk 0:01:05]}  Rxb4 {[%clk 0:00:10]} 43. Rxf5 {[%clk 0:01:05]}  Rf8 {[%clk 0:00:10]} 44. Rxf8+ {[%clk 0:01:04]}  Kxf8 {[%clk 0:00:10]} 45. g4 {[%clk 0:01:02]}  Kg7 {[%clk 0:00:11]} 46. h5 {[%clk 0:01:02]}  Kh6 {[%clk 0:00:10]} 47. Kg3 {[%clk 0:01:02]}  Kg5 {[%clk 0:00:10]} 48. Kf3 {[%clk 0:01:02]}  Rxg4 {[%clk 0:00:10]} 0-1


[Site "https://www.chess.com"]